Workbook

Sheet Instructions
A1: Refer to the current drainage manual for a more detailed discussion of the methods and equations used. | T1: v14a
B3: 60 | D3: User required entries.
B4: 8 | D4: Total travel time. If cell is this color, total time was changed to 8 minutes because the computed time was < required 8 minute minimum.
B5: n | D5: Initial or assumed roughness value (see below).
B6: 1.89 | D6: Cells colored in this manner denote that the calculated shear exceeds the allowable shear (user selected roughness only).
A8: Design storms calculated using NOAA IDF values are based on NOAA Atlas 14, Volume 2, Version 3.0. Backward compatability with Thiessen polygon intensities is provided.
A9: The appropriate Thiessen zone may be selected from a pull-down box in cell D7. Each zone is shown on the state map shown on the worksheet, "Map".
A10: The NOAA design intensity option may be selected from the drop-down box in cell D7. Current latitude / longitude are displayed based on the current values in the spreadsheet.
A11: If the user selects "YES" for cell G11, Internet Explorer will display a map on the NOAA webpage.
A12: Check the screen on the NOAA webpage to ensure that "Precipitation Intensity" is selected. Move the small "X" under the red cursor to the site and zoom in until the site is located.
A13: The NOAA data is displayed below the map. Copy and paste the interior part of the table from "5-min" to the last cell entry for 60-day in the lower right to cells A4 to K41 on sheet "NOAA Data2".
A14: Copy the site identification data including latitude and longitude to cell M1 on the "NOAA Data2" sheet, as shown.
A15: If the user selects "NO" for cell G11, the current latitude and longitude entries in spreadsheet NOAA2 will be used in subsequent calculations.
A17: It is not necessary to enter a specific value for normal depth, dn or roughness. The macro assumes initial values. User values for roughness may be entered by preceding the value
A18: with a specific lower case letter as described below. Specific upper case letters tell the program to solve for roughness using a specified liner type.
A19: When user values for n are entered, actual and allowable shears are calculated. Actual shear is color flagged if greater than allowable shear. User roughness options are:
A20: g.xxx - represents an undeveloped option for Gabion mattress
A21: r.042 - represents a Class II channel lining with roughness = 0.042.
A22: s.045 - represents a Class III channel lining with roughness = 0.045.
A23: t.039 - represents a TRM, type 1 lining as a vegetative Class C grass with roughness = 0.039 and allowable shear = 6 psf.
A24: u.1.5 - represents a rock lined ditch with D50 = 1.5 feet.
A25: v.039 - represents a Vegetative Class C roughness value = 0.039. Allowable shear = 1 psf.
A26: R.042 - represents a Class II channel lining that uses a program calculated roughness.
A27: S.045 - represents a Class III channel lining that uses a program calculated roughness.
A28: There are no options for G,T,U and V. When user roughness options are NOT entered, the program will select a liner that satisties hydraulic flow equations and meets shear requirements.
A30: User and program selected n values are applied to all design storm return intervals. Up to 3 channel segments per storm may be entered.
A31: The first channel segment contains the drainage area for sheet flow, shallow concentrated flow and the first channel segment.
A32: Overland flow, shallow concentrated flow and concentrated channel flow segments calculations may be omitted from the calculations by zeroing out the input data.
A33: KYTC's practice has been to include shallow concentrated flow as part of channel flow.
A34: The 500 year flow is calculated as Q100 * 1.2.
A36: The IDF curve fitting method employed in FHWA's Hydraulic Toolbox 3.0 is included. The exact same coefficients and design storm intensities are obtained if the same intensity data is used.
A37: A summary of the coefficients used for each design storm is shown beginning in cell A21. The calculated intensities for the FHWA method design equations are compared to the NOAA intensities
A38: for select travel times beginning in cell 45. The color codes reflect the closeness of agreement of the calculated intensity results to the NOAA data. The color scheme uses green as
A39: close agreement (maximum difference of 0.03), yellow as reasonably close agreement (> 0.03 but < 0.1) and red as large disagreement (> 0.1 iph).
A41: An option to display additional output columns for each stream segment is available in cell "U3". Enter 0, 2, 5 or 14 before running the macro.
A42: "0" displays no additional columns in addition to the 7 usual columns.
A43: "2" displays 2 additional columns for normal stream depth and roughness in addition to the 7 usual columns.
A44: "5" displays 3 additional columns for stream velocity, Reynolds number and method in addition to the 7 usual columns and 2 additional columns..
A45: "14" displays 9 additional columns for calculated shear, permissible shear, safety factor (rock), Shields' parameter, Reynolds no., delta (rock), cross sectional area,
A46: required liner, required D50 and D50 used in analysis in addition to the 7 usual columns and 5 additional columns.
A48: Press CTRL-r to execute the macro.
A50: NOTE: As the side slope approaches the angle of repose, the Reynolds' number may increase rapidly.
A51: Gabion mattress, Type 1A usually will not be selected as a liner solution because Class III liner calculates to be stronger than a mattress unit based on a current HEC design method.

Sheet Coeff (hidden)
A1: Cairo | Q1: Segment Summary
A2: Return | B2: 2 | C2: 5 | D2: 10 | E2: 25 | F2: 50 | G2: 100 | Q2: dn | R2: n | S2: V | T2: R | U2: Liner
A3: A0 | B3: 6.41 | C3: 8.25 | D3: 9.45 | E3: 10.95 | F3: 12.07 | G3: 13.17
A4: A1 | B4: -0.02 | C4: -0.035 | D4: -0.04 | E4: -0.043 | F4: -0.046 | G4: -0.047 | Q4: Segm't Sum.
A5: A2 | B5: -0.082 | C5: -0.076 | D5: -0.074 | E5: -0.072 | F5: -0.07 | G5: -0.07 | Q5: dn | R5: n
A6: Cincinnati
A7: Return | B7: 2 | C7: 5 | D7: 10 | E7: 25 | F7: 50 | G7: 100
A8: A0 | B8: 7.26 | C8: 7.98 | D8: 8.53 | E8: 9.26 | F8: 9.81 | G8: 10.37
A9: A1 | B9: -0.127 | C9: -0.04 | D9: 0 | E9: 0.038 | F9: 0.06 | G9: 0.079
A10: A2 | B10: -0.074 | C10: -0.084 | D10: -0.088 | E10: -0.092 | F10: -0.095 | G10: -0.097
A11: Evansville
A12: Return | B12: 2 | C12: 5 | D12: 10 | E12: 25 | F12: 50 | G12: 100
A13: A0 | B13: 6.68 | C13: 8.21 | D13: 9.23 | E13: 10.53 | F13: 11.49 | G13: 12.44
A14: A1 | B14: -0.072 | C14: -0.066 | D14: -0.064 | E14: -0.061 | F14: -0.06 | G14: -0.059
A15: A2 | B15: -0.077 | C15: -0.074 | D15: -0.074 | E15: -0.072 | F15: -0.072 | G15: -0.071
A16: Knoxville
A17: Return | B17: 2 | C17: 5 | D17: 10 | E17: 25 | F17: 50 | G17: 100 | I17: old means - kinematic equation used prior to the current Drainage Manual
A18: A0 | B18: 5.5 | C18: 5.68 | D18: 5.9 | E18: 6.24 | F18: 6.52 | G18: 6.81
A19: A1 | B19: 0.036 | C19: 0.152 | D19: 0.204 | E19: 0.254 | F19: 0.283 | G19: 0.307 | I19: old | J19: to = 0.42 ( L * N ) ^ 0.8 / ( P2,24 ^ 0.5 * S ^ 0.4 ) | O19: not iterative
A20: A2 | B20: -0.095 | C20: -0.106 | D20: -0.111 | E20: -0.116 | F20: -0.119 | G20: -0.122
A21: Lexington | I21: current | J21: to = 0.933 ( L * N ) ^ 0.6 / ( I ^ 0.4 * S ^ 0.3 ) | O21: note S exponent
A22: Return | B22: 2 | C22: 5 | D22: 10 | E22: 25 | F22: 50 | G22: 100
A23: A0 | B23: 5.7 | C23: 6.44 | D23: 6.96 | E23: 7.64 | F23: 8.14 | G23: 8.66 | J23: I = Ao * tc ^ ( A1 = A2 * ln ( tc ) ) | O23: IDF equation
A24: A1 | B24: -0.004 | C24: 0.056 | D24: 0.086 | E24: 0.114 | F24: 0.131 | G24: 0.145
A25: A2 | B25: -0.088 | C25: -0.091 | D25: -0.093 | E25: -0.095 | F25: -0.096 | G25: -0.097
A26: Louisville | J26: L | K26: N | L26: S | M26: to | N26: tc | O26: I100
A27: Return | B27: 2 | C27: 5 | D27: 10 | E27: 25 | F27: 50 | G27: 100 | J27: 28 | K27: 0.2 | L27: 0.02 | M27: =0.933*(J27*K27)^0.6/(O27^0.4*L27^0.3) -> 3.536258672 | N27: 3.536 | O27: =$G$23*N27^($G$24+$G$25*LN(N27)) -> 8.909505274 | P27: iterative
A28: A0 | B28: 7.29 | C28: 8.53 | D28: 9.37 | E28: 10.47 | F28: 11.28 | G28: 12.11
A29: A1 | B29: -0.135 | C29: -0.084 | D29: -0.059 | E29: -0.037 | F29: -0.025 | G29: -0.014 | I29: P2,24 | J29: L | K29: N | L29: S | M29: to-old | O29: I100*
A30: A2 | B30: -0.071 | C30: -0.076 | D30: -0.079 | E30: -0.081 | F30: -0.082 | G30: -0.084 | I30: 3.1 | J30: 28 | K30: 0.2 | L30: 0.02 | M30: =0.42*(J30*K30)^0.8/(I30^0.5*L30^0.4) -> 4.525919934 | O30: =$G$23*M30^($G$24+$G$25*LN(M30)) -> 8.641027695 | P30: not iterative
A31: Nashville | Q31: Variable Summary
A32: Return | B32: 2 | C32: 5 | D32: 10 | E32: 25 | F32: 50 | G32: 100 | I32: * - uses Q100 Lexington Region values in IDF equation | Q32: ts | R32: tp | S32: SF | T32: Fx | U32: Re | V32: Delta | W32: A | X32: n Class | Y32: D50c | Z32: D50
A33: A0 | B33: 7.31 | C33: 9.94 | D33: 11.68 | E33: 13.89 | F33: 15.54 | G33: 17.17
A34: A1 | B34: -0.104 | C34: -0.159 | D34: -0.182 | E34: -0.205 | F34: -0.218 | G34: -0.229 | I34: PI | K34: K1 | L34: mu | N34: D50
A35: A2 | B35: -0.074 | C35: -0.063 | D35: -0.059 | E35: -0.054 | F35: -0.051 | G35: -0.049 | I35: 3.141592654 | K35: =IF(MIN('Design Flows'!A15,'Design Flows'!C15)<1.5,0.77,IF(MIN('Design Flows'!A15,'Design Flows'!C15)>5,1,MIN('Design Flows'!A15,'Design Flows'!C15)*0.066+0.067)) -> 0.199 | L35: 0.8209 | N35: 1
A36: Parkersburg | J36: Ch Sl | M36: Z
A37: Return | B37: 2 | C37: 5 | D37: 10 | E37: 25 | F37: 50 | G37: 100 | J37: ='Design Flows'!E15 -> 0.005 | M37: ='Design Flows'!A15 -> 2
A38: A0 | B38: 6.32 | C38: 8.08 | D38: 9.25 | E38: 10.72 | F38: 11.82 | G38: 12.91 | I38: Alpha = | J38: =ATAN('Design Flows'!E15) -> 0.004999958334 | K38: rad | L38: Theta = | M38: =ATAN(1/MIN('Design Flows'!A15,'Design Flows'!C15)) -> 0.463647609 | N38: rad
A39: A1 | B39: -0.042 | C39: -0.04 | D39: -0.04 | E39: -0.039 | F39: -0.038 | G39: -0.038 | J39: =J38*180/$I$35 -> 0.2864765102 | K39: deg | M39: =M38*180/$I$35 -> 26.56505117 | N39: deg
A40: A2 | B40: -0.091 | C40: -0.089 | D40: -0.088 | E40: -0.087 | F40: -0.087 | G40: -0.086
A41: Wytheville | J41: =J42*I35/180 -> 0.7400196029 | K41: rad | L41: num = | M41: =COS(J38) -> 0.9999875002
A42: Return | B42: 2 | C42: 5 | D42: 10 | E42: 25 | F42: 50 | G42: 100 | I42: Phi = | J42: =IF(N35=0.5,42.2,42.4) -> 42.4 | K42: deg | L42: dem = | M42: =(2*SIN(M38)/(N50*TAN(J41)))+SIN(J38) -> 8.051739671
A43: A0 | B43: 6.09 | C43: 6.51 | D43: 6.9 | E43: 7.45 | F43: 7.88 | G43: 8.32 | L43: Beta= | M43: =ATAN(M41/M42) -> 0.1235625077 | N43: rad
A44: A1 | B44: -0.071 | C44: 0.038 | D44: 0.085 | E44: 0.128 | F44: 0.154 | G44: 0.174 | M44: =M43*180/I35 -> 7.079610197 | N44: deg
A45: A2 | B45: -0.08 | C45: -0.092 | D45: -0.096 | E45: -0.101 | F45: -0.104 | G45: -0.106 | I45: num = | J45: =K35*(1+SIN(J38+M43))*TAN(J41) -> 0.2050090089
I46: tl = | J46: =COS(M38)*TAN(J41) -> 0.8167242585
I47: tr = | J47: =SIN(M38)*COS(M43) -> 0.4438039769 | L47: Q10 | M47: Re = | N47: =SQRT(32.2*'Design Flows'!H15*'Design Flows'!E15)*N35/0.00001217 -> 47603.41577
I48: diff = | J48: =J46-J47 -> 0.3729202816 | M48: Fx = | N48: =IF(N47<40000, 0.047,IF(N47>200000,0.15,0.047+((N47-40000)/160000)*0.103)) -> 0.0518946989
I49: dem = | J49: =2*J48 -> 0.7458405633 | M49: ts = | N49: =62.4*'Design Flows'!H15*'Design Flows'!E15 -> 0.6504083491
I50: Delta = | J50: =J45/J49 -> 0.2748697497 | M50: mu = | N50: =N49/(N48*102.96*N35) -> 0.1217291465
T57: Cn = alpha * Cs ^ 0.10 *h ^ 0.528 | X57: (h in FT)
S58: Cn per Veg Class
T59: A | U59: B | V59: C | W59: D | X59: E
S60: h (in) | T60: 36 | U60: 24 | V60: 8 | W60: 4 | X60: 1.6
S61: Cs | T61: 33 | U61: 7.1 | V61: 3.9 | W61: 2.7 | X61: 3.8
S62: Cn | T62: =0.237*T61^0.1*(T60/12)^0.528 -> 0.6005093344 | U62: =0.237*U61^0.1*(U60/12)^0.528 -> 0.4157363689 | V62: =0.237*V61^0.1*(V60/12)^0.528 -> 0.2192192169 | W62: =0.237*W61^0.1*(W60/12)^0.528 -> 0.1465428724 | X62: =0.237*X61^0.1*(X60/12)^0.528 -> 0.09347475997
S63: Cn (general) | Y63: (Cn = 0.2 is typical)
S64: h (ft) | T64: Ex | U64: VG | V64: G | W64: F | X64: P
S65: 0.25 | T65: =0.237*$T$68^0.1*$S$65^0.528 -> 0.1682210264 | U65: =0.237*$U$68^0.1*S65^0.528 -> 0.1572731812 | V65: =0.237*$V$68^0.1*S65^0.528 -> 0.1419988808 | W65: =0.237*$W$68^0.1*S65^0.528 -> 0.1221697458 | X65: =0.237*$X$68^0.1*S65^0.528 -> 0.110456927
S66: 0.5 | T66: =0.237*$T$68^0.1*S66^0.528 -> 0.2425627548 | U66: =0.237*$U$68^0.1*S66^0.528 -> 0.2267767407 | V66: =0.237*$V$68^0.1*S66^0.528 -> 0.204752286 | W66: =0.237*$W$68^0.1*S66^0.528 -> 0.1761600837 | X66: =0.237*$X$68^0.1*S66^0.528 -> 0.1592710321
S67: 0.75 | T67: =0.237*$T$68^0.1*S67^0.528 -> 0.3004694355 | U67: =0.237*$U$68^0.1*S67^0.528 -> 0.2809148474 | V67: =0.237*$V$68^0.1*S67^0.528 -> 0.2536325243 | W67: =0.237*$W$68^0.1*S67^0.528 -> 0.2182145439 | X67: =0.237*$X$68^0.1*S67^0.528 -> 0.1972935917
S68: Cs | T68: 49 | U68: 25 | V68: 9 | W68: 2 | X68: 0.73
S70: Cf (general) | AA70: n = 0.213 * Cn * bo ^ -0.4
S71: Growth | T71: Ex | U71: VG | V71: G | W71: F | X71: P
S72: Sod | T72: 0.98 | U72: 0.95 | V72: 0.9 | W72: 0.84 | X72: 0.75
S73: Bunch | T73: 0.55 | U73: 0.53 | V73: 0.5 | W73: 0.47 | X73: 0.41
S74: Mixed | T74: 0.82 | U74: 0.79 | V74: 0.75 | W74: 0.7 | X74: 0.62
S75: Cf per veg class (interpolated) | AK75: e | AL75: PI | AM75: p,soil
S76: Growth | T76: A | U76: B | V76: C | W76: D | X76: E | AK76: 0.5 | AL76: 15
S77: Sod | T77: > 0.55 | U77: > 0.98 | V77: =T72 -> 0.98 | W77: =(W62-V65)/(U65-V65)*(U72-V72)+V72 -> 0.9148746308 | X77: < 0.75
S78: Bunch | T78: > 0.55 | U78: > 0.55 | V78: =($V$62-V66)/(U66-V66)*(U73-V73)+V73 -> 0.5197057286 | W78: < 0.41 | X78: < 0.41
S79: Mixed | T79: > 0.55 | U79: > 0.98 | V79: =(V62-W67)/(V67-W67)*(V74-W74)+W74 -> 0.7014183093 | W79: < 0.62 | X79: < 0.62 | AI79: ASTM Soil | AJ79: Applicable | AK79: C1 | AL79: C2 | AM79: C3 | AN79: C4 | AO79: C5 | AP79: C6
AI80: Classification | AJ80: Range
AI81: GM | AJ81: 10 < PI < 20 | AK81: 1.07 | AL81: 14.3 | AM81: 47.7 | AN81: 1.42 | AO81: -0.61 | AP81: 0.0001
AJ82: 20 < PI | AK82: 1.07 | AL82: 14.3 | AM82: 0.076 | AN82: 1.42 | AO82: -0.61 | AP82: 1
AI83: GC | AJ83: 10 < PI < 20 | AK83: 0.0477 | AL83: 2.86 | AM83: 42.9 | AN83: 1.42 | AO83: -0.61 | AP83: 0.001
AJ84: 20 < PI | AK84: 0.0477 | AL84: 2.86 | AM84: 0.119 | AN84: 1.42 | AO84: -0.61 | AP84: 1
AI85: SM | AJ85: 10 < PI < 20 | AK85: 1.07 | AL85: 7.15 | AM85: 11.9 | AN85: 1.42 | AO85: -0.61 | AP85: 0.0001
AJ86: 20 < PI | AK86: 1.07 | AL86: 7.15 | AM86: 0.058 | AN86: 1.42 | AO86: -0.61 | AP86: 1
AI87: SC | AJ87: 10 < PI < 20 | AK87: 1.07 | AL87: 14.3 | AM87: 47.7 | AN87: 1.42 | AO87: -0.61 | AP87: 0.0001
AJ88: 20 < PI | AK88: 1.07 | AL88: 14.3 | AM88: 0.076 | AN88: 1.42 | AO88: -0.61 | AP88: 1
AI89: ML | AJ89: 10 < PI < 20 | AK89: 1.07 | AL89: 7.15 | AM89: 11.9 | AN89: 1.48 | AO89: -0.57 | AP89: 0.0001
AJ90: 20 < PI | AK90: 1.07 | AL90: 7.15 | AM90: 0.058 | AN90: 1.48 | AO90: -0.57 | AP90: 1
AI91: CL | AJ91: 10 < PI < 20 | AK91: 1.07 | AL91: 14.3 | AM91: 47.7 | AN91: 1.48 | AO91: -0.57 | AP91: 0.0001
AJ92: 20 < PI | AK92: 1.07 | AL92: 14.3 | AM92: 0.076 | AN92: 1.48 | AO92: -0.57 | AP92: 1
AI93: MH | AJ93: 10 < PI < 20 | AK93: 0.0477 | AL93: 1.43 | AM93: 10.7 | AN93: 1.38 | AO93: -0.373 | AP93: 0.001
AJ94: 20 < PI | AK94: 0.0477 | AL94: 1.43 | AM94: 0.058 | AN94: 1.38 | AO94: -0.373 | AP94: 1
AI95: CH | AJ95: 20 < PI | AM95: 0.097 | AN95: 1.38 | AO95: -0.373 | AP95: 1

Sheet Map (hidden)

Sheet Sheet1 (hidden)
I4: HYCHL Input / Output
H5: iterate | I5: Output | J5: Input
G6: T | H6: =K12+H8*(K7+K8) -> 5.0282 | I6: =K12+I8*(K7+K8) -> 5.54 | J6: Sl | K6: 0.14
G7: da/D50 | H7: =H8/H9 -> 0.5047 | I7: =I8/K9 -> 0.59 | J7: lss | K7: 3
G8: da | H8: 0.5047 | I8: 0.59 | J8: rss | K8: 3
G9: D50 | H9: 1 | J9: D50 | K9: 1
G10: A | H10: =H8*(K12+H8/2*(K7+K8)) -> 1.77356627 | I10: 2.24 | J10: Q | K10: 9.99
G12: WP | H12: =K12+H8*((K7^2+1)^0.5+(K8^2+1)^0.5) -> 5.19200307 | I12: 5.75 | J12: BW | K12: 2
G13: V | H13: =K10/H10 -> 5.632718759 | I13: 4.46
G14: Rh | H14: =H10/H12 -> 0.3415957668 | I14: =I10/I12 -> 0.3895652174
G15: n | H15: =1.486*H14^(2/3)*K6^0.5/H13 -> 0.04823619918 | I15: 0.068
G19: for da/D50 >185 | J19: unknown
G20: pg. 20 eq. 27 (HYCHL Manual)
G21: n | H21: =0.0232*H8^(1/6) -> 0.02070110536
G23: for da/D50 >2 and < 185 | J23: unknown
G24: pg. 19 eq. 26
G25: num | H25: =4.657*H14^(1/6) -> 3.893662621
G26: dem | H26: =32.25+5.23*LOG(H14/H9) -> 29.81027027
G27: n | H27: =H25/H26 -> 0.1306148044
G29: for da/D50 <2 | L29: Bathurst
G30: pg. 20 eq. 28
J31: f(FR) | K31: =((0.28/H34)*H32)^LOG(0.755/H34) -> 1.087140824
G32: Fr | H32: =H13/(32.2*H8)^0.5 -> 1.397247944 | J32: f(REG) | K32: =13.434*(H6/K9)^0.492*H34^(1.025*(H6/K9)^0.118) -> 7.073915998
G33: a | H33: =(1.175*(K9/H6)^0.557)^H35 -> 0.5481899262 | J33: f(CG) | K33: =(H6/H8)^-H34 -> 0.4856844653
G34: b | H34: =H33*(H8/K9)^H35 -> 0.3141549574 | J34: f(FR)*f(REG)*f(CG) | L34: =K31*K32*K33 -> 3.735080064
G35: c | H35: =0.648*0.182^-0.134 -> 0.8141893923 | M35: =L34-L36 -> 0.0007778558402 | N35: diff.
J36: V/sqr(g*da*S) | L36: =H13/(32.2*H8*K6)^0.5 -> 3.734302208
G38: user | J38: Anderson
G39: pg. 22 eq. 35 | J39: user n
G40: n | H40: =0.0481*K9^(1/6) -> 0.0481

Sheet NOAA Data2
A1: PDS-based precipitation frequency estimates with 90% confidence intervals (in inches/hour) | M1: LOCATION INFORMATION:
A2: Duration | B2: Average recurrence interval(years) | M2: Name: Monticello, Kentucky, USA* | Q2: =MID(M2,7,40) -> Monticello, Kentucky, USA* | T2: DESIGN STORM | AD2: IDF Variables*
B3: 1 | C3: 2 | D3: 5 | E3: 10 | F3: 25 | G3: 50 | H3: 100 | I3: 200 | J3: 500 | K3: 1000 | S3: tc | T3: 2 | U3: 5 | V3: 10 | W3: 25 | X3: 50 | Y3: 100 | Z3: IDF | AC3: RI | AD3: a | AE3: b | AF3: m
A4: 5-min | B4: 4.12 | C4: 4.84 | D4: 5.64 | E4: 6.3 | F4: 7.15 | G4: 7.81 | H4: 8.5 | I4: 9.17 | J4: 10.1 | K4: 10.8 | M4: Station name: - | S4: 5 | Z4: FHWA | AC4: 2
A5: 10-min | B5: 3.29 | C5: 3.86 | D5: 4.52 | E5: 5.03 | F5: 5.69 | G5: 6.22 | H5: 6.74 | I5: 7.27 | J5: 7.96 | K5: 8.48 | M5: Site ID: - | Z5: NOAA | AC5: 5
A6: 15-min | B6: 2.74 | C6: 3.24 | D6: 3.81 | E6: 4.24 | F6: 4.81 | G6: 5.25 | H6: 5.68 | I6: 6.12 | J6: 6.68 | K6: 7.1 | M6: Latitude: 36.9190° | Q6: =MID(M6,10,8) -> 36.9190 | Z6: Diff | AC6: 10
A7: 30-min | B7: 1.88 | C7: 2.24 | D7: 2.71 | E7: 3.08 | F7: 3.56 | G7: 3.95 | H7: 4.35 | I7: 4.76 | J7: 5.32 | K7: 5.75 | M7: Longitude: -84.7700° | Q7: =MID(M7,12,8) -> -84.7700 | S7: 10 | Z7: FHWA | AC7: 25
A8: 60-min | B8: 1.17 | C8: 1.4 | D8: 1.73 | E8: 2 | F8: 2.37 | G8: 2.68 | H8: 3 | I8: 3.34 | J8: 3.81 | K8: 4.2 | M8: Elevation: 898.35 ft ** | Z8: NOAA | AC8: 50
A9: 2-hr | B9: 0.686 | C9: 0.82 | D9: 1.01 | E9: 1.16 | F9: 1.39 | G9: 1.57 | H9: 1.77 | I9: 1.97 | J9: 2.27 | K9: 2.51 | Z9: Diff | AC9: 100
A10: 3-hr | B10: 0.497 | C10: 0.591 | D10: 0.725 | E10: 0.837 | F10: 0.996 | G10: 1.13 | H10: 1.27 | I10: 1.42 | J10: 1.63 | K10: 1.81 | S10: 15 | Z10: FHWA
A11: 6-hr | B11: 0.304 | C11: 0.361 | D11: 0.44 | E11: 0.508 | F11: 0.605 | G11: 0.685 | H11: 0.772 | I11: 0.864 | J11: 0.996 | K11: 1.1 | Z11: NOAA
A12: 12-hr | B12: 0.184 | C12: 0.218 | D12: 0.266 | E12: 0.306 | F12: 0.363 | G12: 0.411 | H12: 0.461 | I12: 0.515 | J12: 0.593 | K12: 0.656 | Z12: Diff
A13: 24-hr | B13: 0.111 | C13: 0.132 | D13: 0.162 | E13: 0.185 | F13: 0.218 | G13: 0.245 | H13: 0.273 | I13: 0.302 | J13: 0.342 | K13: 0.374 | S13: 30 | Z13: FHWA
A14: 2-day | B14: 0.067 | C14: 0.08 | D14: 0.097 | E14: 0.112 | F14: 0.133 | G14: 0.149 | H14: 0.167 | I14: 0.186 | J14: 0.212 | K14: 0.232 | Z14: NOAA
A15: 3-day | B15: 0.048 | C15: 0.057 | D15: 0.07 | E15: 0.08 | F15: 0.094 | G15: 0.105 | H15: 0.117 | I15: 0.129 | J15: 0.146 | K15: 0.16 | Z15: Diff
A16: 4-day | B16: 0.038 | C16: 0.046 | D16: 0.056 | E16: 0.063 | F16: 0.074 | G16: 0.083 | H16: 0.092 | I16: 0.101 | J16: 0.113 | K16: 0.123 | S16: 60 | Z16: FHWA
A17: 7-day | B17: 0.026 | C17: 0.031 | D17: 0.038 | E17: 0.044 | F17: 0.051 | G17: 0.057 | H17: 0.064 | I17: 0.071 | J17: 0.08 | K17: 0.087 | Z17: NOAA
A18: 10-day | B18: 0.021 | C18: 0.025 | D18: 0.03 | E18: 0.034 | F18: 0.04 | G18: 0.044 | H18: 0.049 | I18: 0.053 | J18: 0.059 | K18: 0.064 | Z18: Diff
A19: 20-day | B19: 0.015 | C19: 0.017 | D19: 0.021 | E19: 0.023 | F19: 0.026 | G19: 0.028 | H19: 0.031 | I19: 0.033 | J19: 0.036 | K19: 0.038
A20: 30-day | B20: 0.012 | C20: 0.014 | D20: 0.017 | E20: 0.018 | F20: 0.021 | G20: 0.023 | H20: 0.024 | I20: 0.026 | J20: 0.028 | K20: 0.03
A21: 45-day | B21: 0.01 | C21: 0.012 | D21: 0.014 | E21: 0.015 | F21: 0.017 | G21: 0.018 | H21: 0.019 | I21: 0.021 | J21: 0.022 | K21: 0.023
A22: 60-day | B22: 0.009 | C22: 0.011 | D22: 0.012 | E22: 0.014 | F22: 0.015 | G22: 0.016 | H22: 0.017 | I22: 0.018 | J22: 0.019 | K22: 0.02
B43: IDF Variables* | E43: * I = a / (tc + b) ^ m
A44: RI | B44: a | C44: b | D44: m
A45: 2 | B45: 50.78151483 | C45: 11.39671293 | D45: 0.8403824501
A46: 5 | B46: 45.49284925 | C46: 10.1854135 | D46: 0.7674315246
A47: 10 | B47: 38.20835781 | C47: 8.327498632 | D47: 0.6959935671
A48: 25 | B48: 32.86114935 | C48: 6.532836 | D48: 0.6237444017
A49: 50 | B49: 30.16112972 | C49: 5.429541621 | D49: 0.5762708558
A50: 100 | B50: 27.16088849 | C50: 4.084121811 | D50: 0.5264885984
B53: DESIGN STORM
A54: tc | B54: 2 | C54: 5 | D54: 10 | E54: 25 | F54: 50 | G54: 100 | H54: IDF
A55: 5 | B55: 4.84 | C55: 5.64 | D55: 6.3 | E55: 7.15 | F55: 7.81 | G55: 8.5 | H55: FHWA
B56: 4.84 | C56: 5.64 | D56: 6.3 | E56: 7.15 | F56: 7.81 | G56: 8.5 | H56: NOAA
B57: 2.042810365e-14 | C57: -1.074695888e-13 | D57: 7.460698725e-14 | E57: -4.52970994e-14 | F57: 2.220446049e-14 | G57: -6.039613254e-14 | H57: Diff
A58: 10 | B58: 3.869949787 | C58: 4.53331716 | D58: 5.04715536 | E58: 5.711437196 | F58: 6.232099668 | G58: 6.747623539 | H58: FHWA
B59: 3.86 | C59: 4.52 | D59: 5.03 | E59: 5.69 | F59: 6.22 | G59: 6.74 | H59: NOAA
B60: 0.009949787236 | C60: 0.01331715965 | D60: 0.0171553601 | E60: 0.02143719626 | F60: 0.01209966791 | G60: 0.007623538928 | H60: Diff
A61: 15 | B61: 3.243845091 | C61: 3.825226528 | D61: 4.267081357 | E61: 4.843600535 | F61: 5.301316665 | G61: 5.750222788 | H61: FHWA
B62: 3.24 | C62: 3.81 | D62: 4.24 | E62: 4.81 | F62: 5.25 | G62: 5.68 | H62: NOAA
B63: 0.003845091353 | C63: 0.01522652794 | D63: 0.02708135725 | E63: 0.03360053504 | F63: 0.05131666545 | G63: 0.07022278839 | H63: Diff
A64: 30 | B64: 2.222470078 | C64: 2.672578364 | D64: 3.020266508 | E64: 3.483114369 | F64: 3.860054198 | G64: 4.237139482 | H64: FHWA
B65: 2.24 | C65: 2.71 | D65: 3.08 | E65: 3.56 | F65: 3.95 | G65: 4.35 | H65: NOAA
B66: -0.01752992187 | C66: -0.03742163579 | D66: -0.05973349167 | E66: -0.07688563115 | F66: -0.08994580163 | G66: -0.1128605176 | H66: Diff
A67: 60 | B67: 1.405746496 | C67: 1.742108072 | D67: 2.019722439 | E67: 2.396482312 | F67: 2.710628736 | G67: 3.038858422 | H67: FHWA
B68: 1.4 | C68: 1.73 | D68: 2 | E68: 2.37 | F68: 2.68 | G68: 3 | H68: NOAA
B69: 0.005746496288 | C69: 0.0121080721 | D69: 0.01972243879 | E69: 0.02648231155 | F69: 0.03062873596 | G69: 0.03885842194 | H69: Diff

Sheet Design Flows
A2: Kentucky Transportation Cabinet | F2: RATIONAL FLOW ANALYSIS and DESIGN | O2: DR 401 | S2: Cols.
A3: Division of Highway Design 05-18-19 | O3: page 1 of 1 | R3: v17a | S3: 5 | T3: (enter 0, 2, 5 or 14) | Z3: V= | AA3: =O21 -> 1.858062445 | AB3: D50= | AC3: =#REF! ->  | AE3: dn | AF3: =M21 -> 1.786661117 | AH3: Fr= | AI3: =AA3/SQRT(32.2*AF3) -> 0.2449690831
A4: County: | C4: Wayne | L4: Road Name: | T4: for additional output columns | AB4: T= | AC4: =B15+AF3*(A15+C15) -> 15.14664447 | AE4: num | AF4: =0.262*AF3^(1/6) -> 0.2886079715
A5: Federal Proj. No.: | D5: BRO 5145 (003) | L5: Route No.: | N5: KY 90 | AB5: b= | AC5: =1.14*(AC3/AC4)^0.453*(AF3/AC3)^0.814 ->  | AE5: dem | AF5: =2.25+5.23*LOG(AF3/1) -> 3.568180633
A6: State Proj. No.: | D6: FD52 100 196 005-006 | L6: Item No.: | N6: 8-109.1 | AD6: Blodg | AE6: n | AF6: =AF4/AF5 -> 0.08088378957
A7: Intensity Region: | D7: NOAA | L7: Station No.:
A8: Comments: | C8: Zollicoffer Estates Storm Sewer | AC8: dn/D50= | AD8: =AF3/AC3 -> 
A9: Overland Sheet Flow | E9: NOAA IDF Data Retrieval Information | M9: Shallow Concentrated Flow
A10: Lo | B10: no | C10: So | E10: latitude: | G10: 36.9190 | I10: longitude: | K10: -84.7700 | M10: k | N10: Sc | O10: Ls | P10: Vs | Q10: tsc | AD10: Bath | AE10: num | AF10: =1.49*AF3^(1/6) -> 1.641320143
A11: 150 | B11: 0.24 | C11: 0.117 | E11: Need IDF Data? | G11: No | H11: Monticello, Kentucky, USA* | M11: 0.213 | N11: 0.0859 | O11: 3539 | P11: 2.047623141 | Q11: 28.80575637 | AE11: f(Fr) | AF11: =(0.28*AI3/AC5)^LOG(0.755/AC5) -> 
A13: Channel Flow Segments | H13: Q10 Storm Results | O13: Comments | AE13: f(REG) | AF13: =13.434*(AC4/AC3)^0.492*AC5^(1.025*(AC4/AC3)^0.118) -> 
A14: LSS | B14: W | C14: RSS | D14: L | E14: Sl | F14: Ar | G14: C | H14: dn | I14: n | J14: R | K14: Shear | L14: Q | M14: Liner | AE14: f(CG) | AF14: =(AC4/AF3)^-AC5 -> 
A15: 2 | B15: 8 | C15: 2 | D15: 1 | E15: 0.005 | F15: 94.7 | G15: 0.21 | H15: 2.084642144 | I15: 0.06382662925 | J15: 1.464462926 | K15: 0.6504083491 | L15: 53.85806014 | M15: ECB | AE15: dem | AF15: =SQRT(32.2)*AF11*AF13*AF14 -> 
F18: 94.7 | G18: 0.21
F19: Watershed Results | M19: Segment Summary
F20: RI | G20: tov | H20: tsc | I20: tch | J20: tc | K20: I | L20: Q | M20: dn | N20: n | O20: V | P20: R | Q20: Liner
F21: 2 | G21: 8.687436435 | H21: 28.80575637 | I21: 0.008969917406 | J21: 37.50216272 | K21: 1.932184197 | L21: 38.42534712 | M21: 1.786661117 | N21: 0.06712349353 | O21: 1.858062445 | P21: 1.293143046 | Q21: ECB
F24: 5 | G24: 8.078148156 | H24: 28.80575637 | I24: 0.008273593604 | J24: 36.89217812 | K24: 2.366861021 | L24: 47.06976512 | M24: 1.960213293 | N24: 0.06508093939 | O24: 2.01444106 | P24: 1.393660046 | Q24: ECB
F27: 10 | G27: 7.686305021 | H27: 28.80575637 | I27: 0.007850450744 | J27: 36.49991184 | K27: 2.708286561 | L27: 53.85969483 | M27: 2.084642144 | N27: 0.06382662925 | O27: 2.123020347 | P27: 1.464462926 | Q27: ECB
F30: 25 | G30: 7.259775349 | H30: 28.80575637 | I30: 0.007394663718 | J30: 36.07292638 | K30: 3.164542946 | L30: 62.93326558 | M30: 2.238034828 | N30: 0.06245206346 | O30: 2.253877567 | P30: 1.550457808 | Q30: ECB
F33: 50 | G33: 6.97494383 | H33: 28.80575637 | I33: 0.007085868302 | J33: 35.78778606 | K33: 3.537725795 | L33: 70.35475288 | M33: 2.353789619 | N33: 0.06148087553 | O33: 2.352099412 | P33: 1.614499288 | Q33: ECB
F36: 100 | G36: 6.719318882 | H36: 28.80575637 | I36: 0.006809501123 | J36: 35.53188475 | K36: 3.914562847 | L36: 77.84891133 | M36: 2.461446324 | N36: 0.06051281067 | O36: 2.447560602 | P36: 1.673460444 | Q36: ECB
F39: 500 | L39: 93.4186936

Sheet Versions
A1: v16f | B1: Added fix to correct new NOAA data format as copied by user to spreadsheet.
A2: v17 | B2: Change error message for blank intensity region. Tweaked NOAA page format. (3-18)
B3: Removed TC form designation. Changed name to DR 401. (3-18)
A4: v17a | B4: Corrected lat / long display for NOAA data retrieval
